[Event "Titled Tuesday Blitz April 18 Late 2023"]
[White "Mekhitarian, Krikor Sevag"]
[Black "Liu, Casper"]
[WhiteFideId "2107660"]
[BlackFideId "1454153"]
[WhiteElo "2604"]
[BlackElo "2221"]
[Result "1-0"]
[Round "04"]
[TimeControl "180+2"]
[Date "2023.04.18"]
[WhiteClock "0:00:12"]
[BlackClock "0:00:16"]

1. Nf3 {[%clk 0:03:00]}  d6 {[%clk 0:02:59]} 2. d4 {[%clk 0:02:53]}  g6 {[%clk 0:02:57]} 3. c4 {[%clk 0:02:40]}  Bg7 {[%clk 0:02:58]} 4. Nc3 {[%clk 0:02:39]}  Nf6 {[%clk 0:02:57]} 5. e4 {[%clk 0:02:39]}  O-O {[%clk 0:02:57]} 6. h3 {[%clk 0:02:38]}  e5 {[%clk 0:02:56]} 7. d5 {[%clk 0:02:38]}  Na6 {[%clk 0:02:53]} 8. Be3 {[%clk 0:02:37]}  Nc5 {[%clk 0:02:52]} 9. Nd2 {[%clk 0:02:37]}  a5 {[%clk 0:02:51]} 10. g4 {[%clk 0:02:36]}  h5 {[%clk 0:02:49]} 11. Be2 {[%clk 0:02:28]}  hxg4 {[%clk 0:02:14]} 12. hxg4 {[%clk 0:02:29]}  Ne8 {[%clk 0:02:10]} 13. g5 {[%clk 0:02:23]}  f5 {[%clk 0:02:08]} 14. gxf6 {[%clk 0:02:19]}  Qxf6 {[%clk 0:02:07]} 15. Qc2 {[%clk 0:02:13]}  a4 {[%clk 0:02:03]} 16. O-O-O {[%clk 0:02:12]}  c6 {[%clk 0:01:36]} 17. Kb1 {[%clk 0:02:10]}  Nc7 {[%clk 0:01:36]} 18. Rdg1 {[%clk 0:02:07]}  N7a6 {[%clk 0:01:36]} 19. a3 {[%clk 0:02:07]}  Rb8 {[%clk 0:01:32]} 20. Nxa4 {[%clk 0:01:53]}  Bd7 {[%clk 0:01:17]} 21. Nb6 {[%clk 0:01:47]}  Be8 {[%clk 0:01:15]} 22. Bg4 {[%clk 0:01:43]}  Qd8 {[%clk 0:01:12]} 23. Na4 {[%clk 0:01:30]}  b5 {[%clk 0:01:01]} 24. Nxc5 {[%clk 0:01:26]}  Nxc5 {[%clk 0:01:02]} 25. Bxc5 {[%clk 0:01:16]}  dxc5 {[%clk 0:01:02]} 26. Be6+ {[%clk 0:01:16]}  Bf7 {[%clk 0:01:03]} 27. Bxf7+ {[%clk 0:00:54]}  Rxf7 {[%clk 0:01:04]} 28. Rxg6 {[%clk 0:00:54]}  Rxf2 {[%clk 0:00:58]} 29. Rhg1 {[%clk 0:00:53]}  Rb7 {[%clk 0:00:56]} 30. cxb5 {[%clk 0:00:43]}  cxd5 {[%clk 0:00:49]} 31. Qd3 {[%clk 0:00:43]}  c4 {[%clk 0:00:23]} 32. Rxg7+ {[%clk 0:00:38]}  Rxg7 {[%clk 0:00:18]} 33. Rxg7+ {[%clk 0:00:39]}  Kf8 {[%clk 0:00:18]} 34. Qg3 {[%clk 0:00:33]}  Qf6 {[%clk 0:00:17]} 35. Rg8+ {[%clk 0:00:33]}  Kf7 {[%clk 0:00:16]} 36. Rg6 {[%clk 0:00:24]}  Qf4 {[%clk 0:00:13]} 37. Rg7+ {[%clk 0:00:22]}  Ke8 {[%clk 0:00:13]} 38. Rg8+ {[%clk 0:00:22]}  Kd7 {[%clk 0:00:13]} 39. Qg7+ {[%clk 0:00:22]}  Kd6 {[%clk 0:00:14]} 40. Rd8+ {[%clk 0:00:20]}  Kc5 {[%clk 0:00:14]} 41. Qa7+ {[%clk 0:00:18]}  Kxb5 {[%clk 0:00:15]} 42. Rb8+ {[%clk 0:00:14]}  Kc6 {[%clk 0:00:15]} 43. Qb7+ {[%clk 0:00:11]}  Kc5 {[%clk 0:00:16]} 44. Qb6# {[%clk 0:00:12]} 1-0


[Site "https://www.chess.com"]

[Event "Titled Tuesday Blitz April 18 Late 2023"]
[White "Barrientos, Sergio E"]
[Black "Marcziter, Dmitrii"]
[WhiteFideId "4401824"]
[BlackFideId "13900765"]
[WhiteElo "2423"]
[BlackElo "2162"]
[Result "1-0"]
[Round "04"]
[TimeControl "180+2"]
[Date "2023.04.18"]
[WhiteClock "0:01:21"]
[BlackClock "0:00:50"]

1. e4 {[%clk 0:03:00]}  e5 {[%clk 0:02:59]} 2. d4 {[%clk 0:03:00]}  exd4 {[%clk 0:02:59]} 3. c3 {[%clk 0:03:01]}  d3 {[%clk 0:02:59]} 4. c4 {[%clk 0:03:00]}  Bb4+ {[%clk 0:02:57]} 5. Bd2 {[%clk 0:03:00]}  Qe7 {[%clk 0:02:55]} 6. Bxd3 {[%clk 0:02:59]}  Bxd2+ {[%clk 0:02:54]} 7. Nxd2 {[%clk 0:02:59]}  Nf6 {[%clk 0:02:52]} 8. Ngf3 {[%clk 0:02:59]}  d6 {[%clk 0:02:52]} 9. O-O {[%clk 0:03:00]}  O-O {[%clk 0:02:51]} 10. h3 {[%clk 0:03:00]}  Nc6 {[%clk 0:02:51]} 11. a3 {[%clk 0:03:00]}  a5 {[%clk 0:02:50]} 12. b3 {[%clk 0:03:00]}  Ne5 {[%clk 0:02:50]} 13. Nxe5 {[%clk 0:03:00]}  dxe5 {[%clk 0:02:50]} 14. Qc2 {[%clk 0:03:00]}  Be6 {[%clk 0:02:47]} 15. Nf3 {[%clk 0:03:01]}  Bd7 {[%clk 0:02:43]} 16. Qc3 {[%clk 0:03:01]}  Rfe8 {[%clk 0:02:41]} 17. Rfd1 {[%clk 0:03:00]}  h6 {[%clk 0:02:39]} 18. Bc2 {[%clk 0:03:00]}  Bc6 {[%clk 0:02:37]} 19. Re1 {[%clk 0:02:59]}  b6 {[%clk 0:02:35]} 20. Nh4 {[%clk 0:02:57]}  g6 {[%clk 0:02:33]} 21. g3 {[%clk 0:02:55]}  Kh7 {[%clk 0:02:32]} 22. Ng2 {[%clk 0:02:55]}  Rad8 {[%clk 0:02:29]} 23. b4 {[%clk 0:02:50]}  axb4 {[%clk 0:02:25]} 24. axb4 {[%clk 0:02:51]}  Rd4 {[%clk 0:02:24]} 25. f3 {[%clk 0:02:50]}  Red8 {[%clk 0:02:24]} 26. Ne3 {[%clk 0:02:50]}  Nh5 {[%clk 0:02:07]} 27. Nd5 {[%clk 0:02:44]}  Qg5 {[%clk 0:02:03]} 28. g4 {[%clk 0:02:39]}  Nf4 {[%clk 0:02:00]} 29. Rad1 {[%clk 0:02:09]}  Nxh3+ {[%clk 0:01:57]} 30. Kf1 {[%clk 0:02:07]}  Qh4 {[%clk 0:01:53]} 31. Qe3 {[%clk 0:02:05]}  Bxd5 {[%clk 0:01:50]} 32. exd5 {[%clk 0:01:58]}  Rxc4 {[%clk 0:01:40]} 33. Rd2 {[%clk 0:01:56]}  Nf4 {[%clk 0:01:31]} 34. Be4 {[%clk 0:01:41]}  Qh1+ {[%clk 0:01:20]} 35. Qg1 {[%clk 0:01:41]}  Qh3+ {[%clk 0:01:17]} 36. Kf2 {[%clk 0:01:41]}  Ra8 {[%clk 0:01:10]} 37. Qg3 {[%clk 0:01:35]}  Rxb4 {[%clk 0:00:57]} 38. d6 {[%clk 0:01:31]}  Rd8 {[%clk 0:00:56]} 39. Qxh3 {[%clk 0:01:28]}  Nxh3+ {[%clk 0:00:55]} 40. Kg3 {[%clk 0:01:29]}  Ng5 {[%clk 0:00:54]} 41. dxc7 {[%clk 0:01:26]}  Nxe4+ {[%clk 0:00:50]} 42. Rxe4 {[%clk 0:01:21]} 1-0


[Site "https://www.chess.com"]

[Event "Titled Tuesday Blitz April 18 Late 2023"]
[White "Arias, Juan Cruz"]
[Black "EsmeraldasAnderson03"]
[WhiteFideId "118540"]
[WhiteElo "2243"]
[BlackElo "2370"]
[Result "0-1"]
[Round "04"]
[TimeControl "180+2"]
[Date "2023.04.18"]
[WhiteClock "0:00:20"]
[BlackClock "0:00:06"]

1. d4 {[%clk 0:03:00]}  d5 {[%clk 0:02:57]} 2. Nf3 {[%clk 0:03:00]}  Nf6 {[%clk 0:02:57]} 3. e3 {[%clk 0:02:59]}  c5 {[%clk 0:02:53]} 4. c3 {[%clk 0:02:59]}  Nc6 {[%clk 0:02:51]} 5. dxc5 {[%clk 0:02:55]}  a5 {[%clk 0:02:48]} 6. Bb5 {[%clk 0:02:53]}  e6 {[%clk 0:02:48]} 7. b4 {[%clk 0:02:52]}  Ne4 {[%clk 0:02:47]} 8. Bb2 {[%clk 0:02:49]}  Qf6 {[%clk 0:02:39]} 9. Nbd2 {[%clk 0:02:37]}  axb4 {[%clk 0:02:32]} 10. Nxe4 {[%clk 0:02:29]}  dxe4 {[%clk 0:02:31]} 11. Nd4 {[%clk 0:02:29]}  e5 {[%clk 0:02:08]} 12. Nb3 {[%clk 0:02:20]}  bxc3 {[%clk 0:02:02]} 13. Bxc3 {[%clk 0:02:21]}  Qg6 {[%clk 0:01:39]} 14. Qd5 {[%clk 0:02:17]}  Qe6 {[%clk 0:01:18]} 15. Bxc6+ {[%clk 0:02:14]}  bxc6 {[%clk 0:01:18]} 16. Qxe5 {[%clk 0:02:14]}  Qxe5 {[%clk 0:01:05]} 17. Bxe5 {[%clk 0:02:15]}  Be6 {[%clk 0:01:06]} 18. O-O {[%clk 0:02:09]}  f6 {[%clk 0:00:58]} 19. Bd4 {[%clk 0:02:08]}  Kf7 {[%clk 0:00:52]} 20. Nd2 {[%clk 0:02:05]}  f5 {[%clk 0:00:49]} 21. a4 {[%clk 0:02:02]}  Be7 {[%clk 0:00:37]} 22. f3 {[%clk 0:01:59]}  exf3 {[%clk 0:00:34]} 23. Nxf3 {[%clk 0:01:58]}  Bf6 {[%clk 0:00:29]} 24. a5 {[%clk 0:01:55]}  Rhb8 {[%clk 0:00:22]} 25. Bxf6 {[%clk 0:01:54]}  Kxf6 {[%clk 0:00:21]} 26. Nd4 {[%clk 0:01:55]}  Ra6 {[%clk 0:00:20]} 27. e4 {[%clk 0:01:49]}  g6 {[%clk 0:00:19]} 28. exf5 {[%clk 0:01:49]}  gxf5 {[%clk 0:00:18]} 29. Rfe1 {[%clk 0:01:44]}  Bd7 {[%clk 0:00:13]} 30. Nf3 {[%clk 0:01:36]}  Rba8 {[%clk 0:00:12]} 31. Ne5 {[%clk 0:01:35]}  Be8 {[%clk 0:00:12]} 32. Nc4 {[%clk 0:01:34]}  Bf7 {[%clk 0:00:11]} 33. Nb6 {[%clk 0:01:25]}  R8a7 {[%clk 0:00:12]} 34. Red1 {[%clk 0:01:21]}  Rxa5 {[%clk 0:00:12]} 35. Rxa5 {[%clk 0:01:21]}  Rxa5 {[%clk 0:00:12]} 36. Rd6+ {[%clk 0:01:22]}  Ke5 {[%clk 0:00:12]} 37. Rxc6 {[%clk 0:01:20]}  Ra2 {[%clk 0:00:09]} 38. Rc7 {[%clk 0:01:15]}  Bg6 {[%clk 0:00:09]} 39. c6 {[%clk 0:01:12]}  Rc2 {[%clk 0:00:08]} 40. Rc8 {[%clk 0:01:10]}  Kd6 {[%clk 0:00:08]} 41. Rd8+ {[%clk 0:00:56]}  Kc7 {[%clk 0:00:08]} 42. Rf8 {[%clk 0:00:24]}  Kxb6 {[%clk 0:00:08]} 43. h3 {[%clk 0:00:20]}  Rxc6 {[%clk 0:00:08]} 44. Kh2 {[%clk 0:00:20]}  Kc5 {[%clk 0:00:08]} 45. Kg3 {[%clk 0:00:20]}  Kd5 {[%clk 0:00:09]} 46. Kf4 {[%clk 0:00:20]}  Rc2 {[%clk 0:00:06]} 47. g4 {[%clk 0:00:19]}  fxg4 {[%clk 0:00:06]} 48. hxg4 {[%clk 0:00:20]}  Rf2+ {[%clk 0:00:06]} 0-1


[Site "https://www.chess.com"]

[Event "Titled Tuesday Blitz April 18 Late 2023"]
[White "micke12a"]
[Black "Di Berardino, Diego Rafael"]
[BlackFideId "2105446"]
[WhiteElo "2366"]
[BlackElo "2432"]
[Result "0-1"]
[Round "04"]
[TimeControl "180+2"]
[Date "2023.04.18"]
[WhiteClock "0:00:01"]
[BlackClock "0:00:10"]

1. e4 {[%clk 0:03:00]}  Nf6 {[%clk 0:02:58]} 2. e5 {[%clk 0:02:58]}  Nd5 {[%clk 0:02:58]} 3. d4 {[%clk 0:02:58]}  d6 {[%clk 0:02:58]} 4. c4 {[%clk 0:02:56]}  Nb6 {[%clk 0:02:58]} 5. exd6 {[%clk 0:02:56]}  exd6 {[%clk 0:02:57]} 6. Nf3 {[%clk 0:02:56]}  Be7 {[%clk 0:02:57]} 7. h3 {[%clk 0:02:56]}  O-O {[%clk 0:02:57]} 8. Nc3 {[%clk 0:02:56]}  Bf6 {[%clk 0:02:56]} 9. Be2 {[%clk 0:02:56]}  Nc6 {[%clk 0:02:57]} 10. O-O {[%clk 0:02:53]}  Bf5 {[%clk 0:02:36]} 11. Be3 {[%clk 0:02:52]}  d5 {[%clk 0:02:32]} 12. c5 {[%clk 0:02:51]}  Nc8 {[%clk 0:02:26]} 13. Qb3 {[%clk 0:02:43]}  N8e7 {[%clk 0:02:23]} 14. Rfd1 {[%clk 0:02:22]}  h6 {[%clk 0:02:22]} 15. Qa4 {[%clk 0:02:17]}  Bh7 {[%clk 0:02:15]} 16. b4 {[%clk 0:02:14]}  a6 {[%clk 0:02:13]} 17. Qb3 {[%clk 0:02:11]}  Qd7 {[%clk 0:02:12]} 18. a4 {[%clk 0:02:10]}  a5 {[%clk 0:01:56]} 19. b5 {[%clk 0:02:10]}  Nb4 {[%clk 0:01:56]} 20. Rd2 {[%clk 0:02:01]}  c6 {[%clk 0:01:53]} 21. Na2 {[%clk 0:01:52]}  Nxa2 {[%clk 0:01:44]} 22. Qxa2 {[%clk 0:01:49]}  Be4 {[%clk 0:01:26]} 23. Qb2 {[%clk 0:01:43]}  Nf5 {[%clk 0:01:21]} 24. Bf4 {[%clk 0:01:39]}  Rfe8 {[%clk 0:01:14]} 25. Ne5 {[%clk 0:01:38]}  Bxe5 {[%clk 0:01:08]} 26. Bxe5 {[%clk 0:01:35]}  Nh4 {[%clk 0:01:02]} 27. Bf1 {[%clk 0:01:21]}  Re6 {[%clk 0:00:39]} 28. Bg3 {[%clk 0:01:15]}  Nf5 {[%clk 0:00:38]} 29. Bf4 {[%clk 0:00:50]}  Rg6 {[%clk 0:00:38]} 30. Kh2 {[%clk 0:00:37]}  Nh4 {[%clk 0:00:18]} 31. Bg3 {[%clk 0:00:26]}  Nf5 {[%clk 0:00:19]} 32. Bf4 {[%clk 0:00:25]}  Nh4 {[%clk 0:00:15]} 33. Bg3 {[%clk 0:00:23]}  Qe7 {[%clk 0:00:15]} 34. Bd3 {[%clk 0:00:18]}  Nxg2 {[%clk 0:00:10]} 35. Re2 {[%clk 0:00:11]}  Nh4 {[%clk 0:00:09]} 36. Bxe4 {[%clk 0:00:10]}  dxe4 {[%clk 0:00:09]} 37. bxc6 {[%clk 0:00:06]}  bxc6 {[%clk 0:00:09]} 38. Rae1 {[%clk 0:00:02]}  Nf3+ {[%clk 0:00:08]} 39. Kh1 {[%clk 0:00:02]}  Nxe1 {[%clk 0:00:09]} 40. Rxe1 {[%clk 0:00:03]}  Qe6 {[%clk 0:00:09]} 41. Kh2 {[%clk 0:00:03]}  Re8 {[%clk 0:00:09]} 42. Qb7 {[%clk 0:00:03]}  f5 {[%clk 0:00:09]} 43. Qb6 {[%clk 0:00:02]}  Kh7 {[%clk 0:00:08]} 44. Qxa5 {[%clk 0:00:02]}  f4 {[%clk 0:00:08]} 45. Bxf4 {[%clk 0:00:02]}  Qf5 {[%clk 0:00:09]} 46. Bg3 {[%clk 0:00:02]}  e3 {[%clk 0:00:09]} 47. Rxe3 {[%clk 0:00:02]}  Rxe3 {[%clk 0:00:09]} 48. fxe3 {[%clk 0:00:02]}  Qc2+ {[%clk 0:00:09]} 49. Kh1 {[%clk 0:00:01]}  Rxg3 {[%clk 0:00:10]} 0-1


[Site "https://www.chess.com"]

[Event "Titled Tuesday Blitz April 18 Late 2023"]
[White "Janaszak, Dawid"]
[Black "Jodorcovsky Werjivker, Paulo"]
[WhiteFideId "1119206"]
[BlackFideId "3700305"]
[WhiteElo "2220"]
[BlackElo "2120"]
[Result "1-0"]
[Round "04"]
[TimeControl "180+2"]
[Date "2023.04.18"]
[WhiteClock "0:02:29"]
[BlackClock "0:01:28"]

1. e4 {[%clk 0:03:00]}  e5 {[%clk 0:02:35]} 2. Nf3 {[%clk 0:03:00]}  Nc6 {[%clk 0:02:36]} 3. d4 {[%clk 0:03:01]}  exd4 {[%clk 0:02:37]} 4. Nxd4 {[%clk 0:03:02]}  Qh4 {[%clk 0:02:36]} 5. Be2 {[%clk 0:03:00]}  Qxe4 {[%clk 0:02:35]} 6. Nb5 {[%clk 0:02:56]}  Kd8 {[%clk 0:02:28]} 7. O-O {[%clk 0:02:56]}  Be7 {[%clk 0:02:26]} 8. N1c3 {[%clk 0:02:55]}  Qg6 {[%clk 0:02:16]} 9. Nd5 {[%clk 0:02:54]}  Bd6 {[%clk 0:02:16]} 10. Bh5 {[%clk 0:02:47]}  Qf5 {[%clk 0:01:41]} 11. Nxd6 {[%clk 0:02:40]}  cxd6 {[%clk 0:01:42]} 12. Re1 {[%clk 0:02:33]}  g6 {[%clk 0:01:28]} 13. Bg4 {[%clk 0:02:29]} 1-0


[Site "https://www.chess.com"]

[Event "Titled Tuesday Blitz April 18 Late 2023"]
[White "Mickiewicz, Piotr"]
[Black "brm72"]
[WhiteFideId "1114891"]
[WhiteElo "2246"]
[BlackElo "2590"]
[Result "1-0"]
[Round "04"]
[TimeControl "180+2"]
[Date "2023.04.18"]
[WhiteClock "0:00:06"]
[BlackClock "0:00:06"]

1. Nf3 {[%clk 0:03:00]}  c5 {[%clk 0:02:59]} 2. e3 {[%clk 0:02:59]}  Nc6 {[%clk 0:02:50]} 3. Bb5 {[%clk 0:02:58]}  g6 {[%clk 0:02:49]} 4. O-O {[%clk 0:02:56]}  Bg7 {[%clk 0:02:48]} 5. d4 {[%clk 0:02:56]}  cxd4 {[%clk 0:02:46]} 6. exd4 {[%clk 0:02:55]}  d5 {[%clk 0:02:46]} 7. c4 {[%clk 0:02:49]}  a6 {[%clk 0:02:42]} 8. Bxc6+ {[%clk 0:02:44]}  bxc6 {[%clk 0:02:43]} 9. Nc3 {[%clk 0:02:40]}  Nf6 {[%clk 0:02:30]} 10. Ne5 {[%clk 0:02:37]}  Bd7 {[%clk 0:02:18]} 11. cxd5 {[%clk 0:02:31]}  cxd5 {[%clk 0:02:19]} 12. Qf3 {[%clk 0:02:11]}  e6 {[%clk 0:02:14]} 13. Bg5 {[%clk 0:02:01]}  h6 {[%clk 0:02:09]} 14. Bh4 {[%clk 0:01:35]}  g5 {[%clk 0:02:07]} 15. Bg3 {[%clk 0:01:34]}  O-O {[%clk 0:02:06]} 16. h4 {[%clk 0:01:32]}  Bb5 {[%clk 0:02:03]} 17. hxg5 {[%clk 0:01:26]}  hxg5 {[%clk 0:02:03]} 18. Rfe1 {[%clk 0:01:07]}  Nd7 {[%clk 0:01:57]} 19. a4 {[%clk 0:00:55]}  Nxe5 {[%clk 0:01:55]} 20. Bxe5 {[%clk 0:00:56]}  Bc4 {[%clk 0:01:53]} 21. Bxg7 {[%clk 0:00:44]}  Kxg7 {[%clk 0:01:54]} 22. Re5 {[%clk 0:00:43]}  Rh8 {[%clk 0:01:32]} 23. Qe3 {[%clk 0:00:43]}  Kg6 {[%clk 0:01:32]} 24. b3 {[%clk 0:00:25]}  Bxb3 {[%clk 0:01:16]} 25. Ne2 {[%clk 0:00:24]}  Bc4 {[%clk 0:01:13]} 26. f4 {[%clk 0:00:23]}  Bxe2 {[%clk 0:00:28]} 27. Rxg5+ {[%clk 0:00:22]}  Kf6 {[%clk 0:00:28]} 28. Qxe2 {[%clk 0:00:16]}  Qd6 {[%clk 0:00:22]} 29. Re1 {[%clk 0:00:16]}  Qxf4 {[%clk 0:00:12]} 30. Rg4 {[%clk 0:00:11]}  Qh2+ {[%clk 0:00:10]} 31. Kf2 {[%clk 0:00:12]}  Rh5 {[%clk 0:00:09]} 32. Ke3 {[%clk 0:00:10]}  Rah8 {[%clk 0:00:06]} 33. Rf1+ {[%clk 0:00:09]}  Ke7 {[%clk 0:00:07]} 34. Qb2 {[%clk 0:00:05]}  Qc7 {[%clk 0:00:06]} 35. Qb4+ {[%clk 0:00:05]}  Qd6 {[%clk 0:00:06]} 36. Rxf7+ {[%clk 0:00:05]}  Kxf7 {[%clk 0:00:05]} 37. Qxd6 {[%clk 0:00:06]}  Re8 {[%clk 0:00:05]} 38. Rf4+ {[%clk 0:00:06]}  Kg6 {[%clk 0:00:05]} 39. Qd7 {[%clk 0:00:06]}  Rhh8 {[%clk 0:00:04]} 40. Qf7+ {[%clk 0:00:06]}  Kg5 {[%clk 0:00:05]} 41. Qf6+ {[%clk 0:00:05]}  Kh5 {[%clk 0:00:06]} 42. Rh4# {[%clk 0:00:06]} 1-0


[Site "https://www.chess.com"]

[Event "Titled Tuesday Blitz April 18 Late 2023"]
[White "Srinath, Rao S.V."]
[Black "Buchenau, Frank"]
[WhiteFideId "5028876"]
[BlackFideId "4604350"]
[WhiteElo "2196"]
[BlackElo "2157"]
[Result "1-0"]
[Round "04"]
[TimeControl "180+2"]
[Date "2023.04.18"]
[WhiteClock "0:00:32"]
[BlackClock "0:00:09"]

1. e4 {[%clk 0:03:00]}  e6 {[%clk 0:02:59]} 2. d4 {[%clk 0:02:57]}  d5 {[%clk 0:02:58]} 3. Nd2 {[%clk 0:02:57]}  c5 {[%clk 0:02:57]} 4. Ngf3 {[%clk 0:02:52]}  cxd4 {[%clk 0:02:57]} 5. exd5 {[%clk 0:02:43]}  Qxd5 {[%clk 0:02:55]} 6. Bc4 {[%clk 0:02:43]}  Qd6 {[%clk 0:02:54]} 7. O-O {[%clk 0:02:43]}  Nf6 {[%clk 0:02:54]} 8. Nb3 {[%clk 0:02:42]}  Nc6 {[%clk 0:02:54]} 9. Nbxd4 {[%clk 0:02:38]}  Nxd4 {[%clk 0:02:53]} 10. Nxd4 {[%clk 0:02:38]}  a6 {[%clk 0:02:49]} 11. c3 {[%clk 0:02:32]}  Qc7 {[%clk 0:02:47]} 12. Be2 {[%clk 0:02:31]}  Bd6 {[%clk 0:02:45]} 13. h3 {[%clk 0:02:26]}  O-O {[%clk 0:02:44]} 14. Bf3 {[%clk 0:02:27]}  e5 {[%clk 0:02:41]} 15. Nb3 {[%clk 0:02:24]}  e4 {[%clk 0:02:34]} 16. Be2 {[%clk 0:02:24]}  Bf5 {[%clk 0:01:36]} 17. Bg5 {[%clk 0:02:22]}  Bh2+ {[%clk 0:01:27]} 18. Kh1 {[%clk 0:02:21]}  Rad8 {[%clk 0:01:21]} 19. Nd4 {[%clk 0:02:17]}  Be5 {[%clk 0:01:20]} 20. Nxf5 {[%clk 0:02:17]}  Rxd1 {[%clk 0:01:18]} 21. Raxd1 {[%clk 0:02:18]}  h6 {[%clk 0:01:07]} 22. Bh4 {[%clk 0:02:13]}  Kh7 {[%clk 0:01:02]} 23. Bxf6 {[%clk 0:01:59]}  Bxf6 {[%clk 0:01:01]} 24. Ne3 {[%clk 0:01:50]}  Bg5 {[%clk 0:00:55]} 25. Nd5 {[%clk 0:01:43]}  Qe5 {[%clk 0:00:53]} 26. f4 {[%clk 0:01:39]}  exf3 {[%clk 0:00:51]} 27. Bxf3 {[%clk 0:01:39]}  Qg3 {[%clk 0:00:27]} 28. Bg4 {[%clk 0:01:30]}  g6 {[%clk 0:00:24]} 29. Rf3 {[%clk 0:01:28]}  Qe5 {[%clk 0:00:22]} 30. Rff1 {[%clk 0:01:18]}  Bh4 {[%clk 0:00:18]} 31. b3 {[%clk 0:01:11]}  f5 {[%clk 0:00:17]} 32. Bf3 {[%clk 0:01:11]}  g5 {[%clk 0:00:17]} 33. c4 {[%clk 0:01:04]}  Rf7 {[%clk 0:00:16]} 34. Bh5 {[%clk 0:01:03]}  Rg7 {[%clk 0:00:16]} 35. Rd3 {[%clk 0:00:55]}  g4 {[%clk 0:00:15]} 36. Re3 {[%clk 0:00:55]}  Qd4 {[%clk 0:00:11]} 37. hxg4 {[%clk 0:00:42]}  fxg4 {[%clk 0:00:11]} 38. g3 {[%clk 0:00:38]}  Bg5 {[%clk 0:00:10]} 39. Re8 {[%clk 0:00:35]}  Bd2 {[%clk 0:00:09]} 40. Kg2 {[%clk 0:00:32]}  Qd3 {[%clk 0:00:09]} 41. Nf6# {[%clk 0:00:32]} 1-0


[Site "https://www.chess.com"]

[Event "Titled Tuesday Blitz April 18 Late 2023"]
[White "Gubajdullin, Alexei"]
[Black "Schuster, Karsten"]
[WhiteFideId "4141202"]
[BlackFideId "4611071"]
[WhiteElo "2279"]
[BlackElo "2294"]
[Result "1/2-1/2"]
[Round "04"]
[TimeControl "180+2"]
[Date "2023.04.18"]
[WhiteClock "0:00:18"]
[BlackClock "0:00:18"]

1. d4 {[%clk 0:03:00]}  d5 {[%clk 0:02:58]} 2. Nf3 {[%clk 0:02:59]}  Nf6 {[%clk 0:02:57]} 3. Bf4 {[%clk 0:03:00]}  c5 {[%clk 0:02:57]} 4. e3 {[%clk 0:03:00]}  cxd4 {[%clk 0:02:57]} 5. exd4 {[%clk 0:03:00]}  Nc6 {[%clk 0:02:58]} 6. c3 {[%clk 0:03:00]}  Bf5 {[%clk 0:02:57]} 7. Qb3 {[%clk 0:02:59]}  Qc8 {[%clk 0:02:56]} 8. Nbd2 {[%clk 0:02:59]}  e6 {[%clk 0:02:56]} 9. Ke2 {[%clk 0:02:59]}  Be7 {[%clk 0:02:50]} 10. Ke1 {[%clk 0:02:59]}  O-O {[%clk 0:02:50]} 11. Be2 {[%clk 0:02:59]}  a6 {[%clk 0:02:48]} 12. a4 {[%clk 0:02:58]}  Na5 {[%clk 0:02:47]} 13. Qa2 {[%clk 0:02:58]}  Ne4 {[%clk 0:02:46]} 14. h4 {[%clk 0:02:50]}  Bg4 {[%clk 0:02:41]} 15. h5 {[%clk 0:02:50]}  Nxd2 {[%clk 0:02:41]} 16. Nxd2 {[%clk 0:02:45]}  Bxe2 {[%clk 0:02:40]} 17. Kxe2 {[%clk 0:02:45]}  h6 {[%clk 0:02:40]} 18. Rh3 {[%clk 0:02:39]}  b5 {[%clk 0:02:40]} 19. Rg3 {[%clk 0:02:38]}  Kh8 {[%clk 0:02:38]} 20. Be5 {[%clk 0:02:33]}  f6 {[%clk 0:02:35]} 21. Bf4 {[%clk 0:02:32]}  Nc4 {[%clk 0:02:35]} 22. Nf3 {[%clk 0:02:30]}  Bd6 {[%clk 0:02:28]} 23. Bxd6 {[%clk 0:02:23]}  Nxd6 {[%clk 0:02:27]} 24. Nh4 {[%clk 0:02:23]}  Kg8 {[%clk 0:02:07]} 25. Re3 {[%clk 0:02:12]}  Re8 {[%clk 0:02:00]} 26. axb5 {[%clk 0:02:10]}  axb5 {[%clk 0:01:58]} 27. Qxa8 {[%clk 0:02:01]}  Qxa8 {[%clk 0:01:58]} 28. Rxa8 {[%clk 0:02:00]}  Rxa8 {[%clk 0:01:59]} 29. Rxe6 {[%clk 0:01:59]}  Nc4 {[%clk 0:01:58]} 30. Nf5 {[%clk 0:01:50]}  Kf8 {[%clk 0:01:34]} 31. b3 {[%clk 0:01:39]}  Ra2+ {[%clk 0:01:33]} 32. Kf3 {[%clk 0:01:33]}  Nd2+ {[%clk 0:01:32]} 33. Kg4 {[%clk 0:01:29]}  Ne4 {[%clk 0:01:21]} 34. f3 {[%clk 0:01:22]}  Rxg2+ {[%clk 0:01:15]} 35. Kh3 {[%clk 0:01:22]}  Ng5+ {[%clk 0:01:15]} 36. Kxg2 {[%clk 0:01:20]}  Nxe6 {[%clk 0:01:16]} 37. Kg3 {[%clk 0:01:17]}  Nc7 {[%clk 0:00:48]} 38. Kf4 {[%clk 0:01:13]}  Kf7 {[%clk 0:00:48]} 39. Ke3 {[%clk 0:01:13]}  Ne8 {[%clk 0:00:37]} 40. Kd3 {[%clk 0:01:06]}  Ke6 {[%clk 0:00:37]} 41. Ne3 {[%clk 0:00:53]}  Nd6 {[%clk 0:00:37]} 42. c4 {[%clk 0:00:49]}  bxc4+ {[%clk 0:00:36]} 43. bxc4 {[%clk 0:00:49]}  dxc4+ {[%clk 0:00:36]} 44. Nxc4 {[%clk 0:00:49]}  Nf5 {[%clk 0:00:33]} 45. Nb6 {[%clk 0:00:38]}  Ng3 {[%clk 0:00:32]} 46. Kc4 {[%clk 0:00:38]}  Nxh5 {[%clk 0:00:33]} 47. Kc5 {[%clk 0:00:38]}  Nf4 {[%clk 0:00:29]} 48. d5+ {[%clk 0:00:38]}  Nxd5 {[%clk 0:00:27]} 49. Nxd5 {[%clk 0:00:38]}  Kf5 {[%clk 0:00:26]} 50. Kd4 {[%clk 0:00:37]}  g5 {[%clk 0:00:25]} 51. Ke3 {[%clk 0:00:22]}  Ke5 {[%clk 0:00:24]} 52. Ne7 {[%clk 0:00:21]}  h5 {[%clk 0:00:21]} 53. Kf2 {[%clk 0:00:20]}  Kf4 {[%clk 0:00:19]} 54. Nd5+ {[%clk 0:00:19]}  Ke5 {[%clk 0:00:19]} 55. Ne7 {[%clk 0:00:18]}  Kf4 {[%clk 0:00:19]} 56. Ng6+ {[%clk 0:00:18]}  Kf5 {[%clk 0:00:19]} 57. Ne7+ {[%clk 0:00:18]}  Kf4 {[%clk 0:00:18]} 1/2-1/2


[Site "https://www.chess.com"]

[Event "Titled Tuesday Blitz April 18 Late 2023"]
[White "Moral Garcia, Serafin"]
[Black "Szente Varga, Fruzsina"]
[WhiteFideId "2201925"]
[BlackFideId "712264"]
[WhiteElo "2274"]
[BlackElo "1994"]
[Result "0-1"]
[Round "04"]
[TimeControl "180+2"]
[Date "2023.04.18"]
[WhiteClock "0:02:31"]
[BlackClock "0:02:33"]

1. e4 {[%clk 0:02:49]}  e5 {[%clk 0:02:59]} 2. Nf3 {[%clk 0:02:48]}  Nc6 {[%clk 0:02:59]} 3. Bb5 {[%clk 0:02:48]}  a6 {[%clk 0:03:00]} 4. Bxc6 {[%clk 0:02:48]}  dxc6 {[%clk 0:03:01]} 5. O-O {[%clk 0:02:48]}  Bg4 {[%clk 0:02:59]} 6. h3 {[%clk 0:02:48]}  Bxf3 {[%clk 0:02:55]} 7. Qxf3 {[%clk 0:02:48]}  f6 {[%clk 0:02:51]} 8. d3 {[%clk 0:02:47]}  Qd7 {[%clk 0:02:49]} 9. Nc3 {[%clk 0:02:43]}  O-O-O {[%clk 0:02:49]} 10. Qe2 {[%clk 0:02:42]}  g5 {[%clk 0:02:46]} 11. Qg4 {[%clk 0:02:39]}  Qxg4 {[%clk 0:02:44]} 12. hxg4 {[%clk 0:02:37]}  h5 {[%clk 0:02:45]} 13. gxh5 {[%clk 0:02:37]}  Rxh5 {[%clk 0:02:46]} 14. f3 {[%clk 0:02:37]}  Bc5+ {[%clk 0:02:45]} 15. Rf2 {[%clk 0:02:33]}  Ne7 {[%clk 0:02:34]} 16. Bd2 {[%clk 0:02:31]}  Rdh8 {[%clk 0:02:33]} 0-1


[Site "https://www.chess.com"]